bitfinex/quotes_SOLUSD_20250410
["timestamp","ask_amount","ask_price","bid_price","bid_amount"]
[1744310042672,9.30302314,110.88,110.86,0.03]
[1744310042673,68.52817707,110.88,110.86,0.03]
[1744310042890,40.57550507,110.87,110.86,0.03]
[1744310043085,49.59500507,110.87,110.86,0.03]
[1744310043606,9.30382314,110.87,110.86,0.03]
[1744310043977,9.0195,110.87,110.86,0.03]
[1744310044297,9.0195,110.87,110.86,40.60550507]
[1744310044505,9.0179,110.89,110.86,40.60550507]
[1744310044714,31.5545,110.92,110.88,40.57550507]
[1744310044875,31.5545,110.92,110.87,7.7728]
[1744310045070,31.5545,110.92,110.88,40.57550507]
[1744310045286,31.5545,110.92,110.89,40.57550507]
[1744310045491,9.0155,110.92,110.91,40.57550507]
[1744310045696,72.11900507,110.96,110.91,40.57550507]
[1744310045900,9.0122,110.96,110.94,40.57550507]
[1744310046199,9.0122,110.96,110.93,40.57550507]
[1744310046595,9.0122,110.96,110.94,40.57550507]
[1744310046899,9.0122,110.96,110.93,40.57550507]
[1744310047205,9.0744,110.97,110.94,40.57550507]
[1744310047503,31.603,110.97,110.93,40.57550507]
[1744310047803,31.603,110.97,110.91,9.0161]
[1744310047804,31.603,110.97,110.94,40.57550507]
[1744310048005,31.603,110.97,110.94,51.13550507]
[1744310048299,40.85982821,110.96,110.92,8.0426]
[1744310048600,0.28432314,110.96,110.93,40.57550507]
[1744310049181,9.013,110.95,110.93,40.57550507]
[1744310050314,9.0124,110.96,110.93,40.57550507]
[1744310050525,9.0124,110.96,110.94,40.57550507]
[1744310050799,9.0124,110.96,110.93,40.57550507]
[1744310052209,31.88732314,110.97,110.93,40.57550507]
[1744310053306,72.46282821,110.97,110.93,40.57550507]
[1744310053602,40.57550507,110.96,110.92,48.61810507]
[1744310053913,31.88732314,110.97,110.92,48.61810507]
[1744310054091,72.46282821,110.97,110.92,48.61810507]
[1744310054294,40.57550507,110.96,110.92,48.61810507]
[1744310054511,72.46282821,110.97,110.92,48.61810507]
[1744310054711,31.88732314,110.97,110.93,40.57550507]
[1744310055010,72.46282821,110.97,110.93,40.57550507]
[1744310055207,31.88732314,110.97,110.93,40.57550507]
[1744310055810,9.35872314,110.97,110.93,40.57550507]
[1744310055984,0.063,110.97,110.96,40.57550507]
[1744310056183,0.063,110.97,110.95,10.56]
[1744310056403,9.0746,110.97,110.95,10.56]
[1744310056606,9.0746,110.97,110.95,51.13550507]
[1744310056795,9.0746,110.97,110.95,10.56]
[1744310057304,40.85982821,110.96,110.92,48.61810507]
[1744310057512,0.28432314,110.96,110.93,40.57550507]
[1744310057809,9.013,110.95,110.93,40.57550507]
[1744310058050,9.013,110.95,110.92,48.61810507]
[1744310058311,9.013,110.95,110.92,8.0426]
[1744310059210,0.28432314,110.94,110.91,10.56]
[1744310059606,31.5456,110.95,110.91,51.13550507]
[1744310059919,9.013,110.95,110.92,40.57550507]
[1744310060204,9.013,110.95,110.93,40.57550507]
[1744310060407,9.013,110.95,110.92,40.57550507]
[1744310060608,0.28432314,110.94,110.92,40.57550507]
[1744310060783,0.28432314,110.94,110.91,51.13550507]
[1744310061302,9.013,110.95,110.92,40.57550507]
[1744310061614,0.28432314,110.94,110.91,10.56]
[1744310061810,0.28432314,110.94,110.91,51.13550507]
[1744310062017,9.0146,110.93,110.91,10.56]
[1744310063326,0.28432314,110.92,110.89,40.57550507]
[1744310063985,9.0163,110.91,110.89,40.57550507]
[1744310064186,9.30022314,110.92,110.89,40.57550507]
[1744310064514,9.30022314,110.92,110.9,40.57550507]
[1744310064697,9.30022314,110.92,110.89,40.57550507]
[1744310065016,72.41442821,110.92,110.87,7.7434]
[1744310065216,40.57550507,110.9,110.86,51.16550507]
[1744310065506,0.28432314,110.91,110.87,40.57550507]
[1744310065710,49.59140507,110.92,110.88,40.57550507]
[1744310065923,9.0159,110.92,110.88,40.57550507]
[1744310066089,9.0159,110.92,110.89,40.57550507]
[1744310067111,0.14216157,110.91,110.86,10.59]
[1744310067293,0.28432314,110.91,110.88,40.57550507]
[1744310067489,0.28432314,110.91,110.87,40.57550507]
[1744310067794,40.85982821,110.91,110.86,10.59]
[1744310067986,9.0171,110.9,110.87,40.57550507]
[1744310068186,9.0171,110.9,110.86,10.59]
[1744310068386,31.5599,110.9,110.86,51.16550507]
[1744310068887,31.5599,110.9,110.86,10.59]
[1744310069083,72.13540507,110.9,110.86,51.16550507]
[1744310069816,0.28432314,110.89,110.86,51.16550507]
[1744310070022,9.0187,110.88,110.86,51.16550507]
[1744310070319,0.28432314,110.9,110.87,40.57550507]
[1744310070812,0.28432314,110.9,110.86,10.59]
[1744310071008,0.28432314,110.9,110.88,40.57550507]
[1744310071413,0.28432314,110.9,110.87,40.57550507]
[1744310071710,0.28432314,110.9,110.88,40.57550507]
[1744310072115,9.0155,110.92,110.88,40.57550507]
[1744310072315,9.0155,110.92,110.89,40.57550507]
[1744310072799,8.5155,110.92,110.89,40.57550507]
[1744310072989,8.5155,110.92,110.86,19.6102]
[1744310073184,8.5155,110.92,110.89,40.57550507]
[1744310073385,8.5155,110.92,110.86,19.6102]
[1744310073709,8.5155,110.92,110.9,40.57550507]
[1744310074515,8.5155,110.92,110.89,40.57550507]
[1744310075789,1.6095,110.97,110.91,40.57550507]
[1744310075993,0.063,110.97,110.96,40.57550507]
[1744310078407,0.063,110.97,110.96,49.58770507]
[1744310078798,0.063,110.97,110.96,40.57550507]
[1744310079001,0.063,110.97,110.95,40.57550507]
[1744310079195,0.28432314,110.96,110.92,10.56]
[1744310079395,59.50947707,110.96,110.88,48.51950507]
[1744310079601,40.85982821,110.94,110.9,40.57550507]
[1744310079923,9.0146,110.93,110.9,40.57550507]
[1744310080128,9.0146,110.93,110.89,40.57550507]
[1744310080320,49.59010507,110.93,110.88,7.944]
[1744310080502,49.59010507,110.93,110.89,40.57550507]
[1744310081121,9.0146,110.93,110.9,40.57550507]
[1744310081699,49.09010507,110.93,110.89,40.57550507]
[1744310081901,9.0163,110.91,110.88,40.57550507]
[1744310082428,9.0163,110.91,110.89,40.57550507]
[1744310082927,9.30022314,110.92,110.9,40.57550507]
[1744310083105,9.0146,110.93,110.9,40.57550507]
[1744310083506,9.0146,110.93,110.89,40.57550507]
[1744310083712,9.0146,110.93,110.87,19.5795]
[1744310083898,9.29852314,110.94,110.91,40.57550507]
[1744310084305,72.40872821,110.94,110.9,40.57550507]
[1744310084515,40.57550507,110.93,110.89,40.57550507]
[1744310084813,72.40872821,110.94,110.89,40.57550507]
[1744310085344,72.40872821,110.94,110.9,40.57550507]
[1744310085710,49.87402821,110.94,110.9,40.57550507]
[1744310086021,0.28432314,110.91,110.87,10.56]
[1744310086228,0.28432314,110.91,110.88,40.57550507]
[1744310087628,9.0171,110.9,110.88,40.57550507]
[1744310088632,0.28432314,110.89,110.87,10.56]
[1744310088813,0.28432314,110.89,110.86,40.60550507]
[1744310089020,0.28432314,110.87,110.86,0.03]
[1744310089616,9.30382314,110.87,110.86,0.03]
[1744310092529,68.52897707,110.87,110.86,0.03]
[1744310092940,26.0,110.84,110.83,0.063]
[1744310093121,66.57550507,110.84,110.83,0.063]
[1744310093316,26.0,110.84,110.83,0.063]
[1744310093930,35.022,110.84,110.83,0.063]
[1744310094436,9.30632314,110.84,110.83,0.063]
[1744310094646,9.0214,110.85,110.83,40.63850507]
[1744310095031,9.0214,110.85,110.83,0.063]
[1744310095226,9.16286157,110.86,110.84,40.57550507]
[1744310095431,9.0207,110.86,110.84,40.57550507]
[1744310095839,9.0207,110.86,110.83,40.63850507]
[1744310096730,0.28432314,110.85,110.83,0.063]
[1744310097330,9.0207,110.86,110.83,40.63850507]
[1744310097557,9.0187,110.88,110.85,40.57550507]
[1744310097731,24.0878,110.9,110.87,40.57550507]
[1744310097732,22.5434,110.9,110.87,40.57550507]
[1744310098096,9.0171,110.9,110.88,40.57550507]
[1744310098230,9.0166,110.91,110.89,40.57550507]
[1744310098957,9.0166,110.91,110.86,9.0203]
[1744310099142,9.0166,110.91,110.86,40.57550507]
[1744310099143,0.28432314,110.9,110.86,40.57550507]
[1744310099341,59.50947707,110.9,110.84,10.56]
[1744310099541,59.50947707,110.9,110.86,40.57550507]
[1744310099733,26.0,110.89,110.88,40.57550507]
[1744310100031,35.0181,110.89,110.87,40.57550507]
[1744310100231,0.28432314,110.88,110.84,10.56]
[1744310100455,40.85982821,110.88,110.84,10.56]
[1744310100662,0.28432314,110.85,110.83,0.063]
[1744310101356,40.57550507,110.87,110.83,40.63850507]
[1744310101565,0.28432314,110.86,110.83,40.63850507]
[1744310101859,57.5629,110.89,110.84,40.57550507]
[1744310102158,98.13840507,110.89,110.85,40.57550507]
[1744310102366,57.5629,110.89,110.86,40.57550507]
[1744310102657,0.28432314,110.88,110.85,40.57550507]
[1744310103655,9.0155,110.92,110.87,40.57550507]
[1744310103836,9.0155,110.92,110.9,40.57550507]
[1744310104037,0.28432314,110.91,110.85,30.56]
[1744310104358,0.28432314,110.91,110.87,40.57550507]
[1744310104359,40.85982821,110.91,110.87,40.57550507]
[1744310104544,0.28432314,110.91,110.87,40.57550507]
[1744310105161,40.85982821,110.91,110.87,40.57550507]
[1744310105339,40.85982821,110.91,110.86,40.57550507]
[1744310105535,40.85982821,110.91,110.87,40.57550507]
[1744310105949,40.85982821,110.91,110.86,40.57550507]
[1744310105950,40.57550507,110.9,110.86,40.57550507]
[1744310106155,9.0187,110.88,110.86,40.57550507]
[1744310106663,9.0187,110.88,110.85,10.56]
[1744310106834,9.0187,110.88,110.86,40.57550507]
[1744310107041,9.0187,110.88,110.85,10.56]
[1744310107365,9.0187,110.88,110.86,40.57550507]
[1744310107744,9.0187,110.88,110.85,10.56]
[1744310107938,0.28432314,110.87,110.85,10.56]
[1744310108247,9.0203,110.86,110.85,10.56]
[1744310108645,9.0203,110.86,110.83,0.063]
[1744310108847,0.28432314,110.85,110.83,0.063]
[1744310109032,40.85982821,110.85,110.83,0.063]
[1744310109232,66.57550507,110.84,110.83,0.063]
[1744310109450,66.57550507,110.84,110.83,0.0001]
[1744310109665,85.65163864,110.84,110.83,0.0001]
[1744310110061,27.957572,110.82,110.81,0.03]
[1744310110255,49.88342821,110.82,110.81,0.03]
[1744310110433,9.0232,110.83,110.81,0.03]
[1744310110638,9.0232,110.83,110.81,40.60550507]
[1744310111334,9.0232,110.83,110.81,0.03]
[1744310111848,49.59870507,110.83,110.81,0.03]
[1744310112238,40.85982821,110.82,110.81,0.03]
[1744310112433,59.50947707,110.82,110.81,0.03]
[1744310113166,108.04364371,110.82,110.81,0.0001]
[1744310113465,107.75932057,110.82,110.81,0.0001]
[1744310114055,19.07613357,110.81,110.79,0.0001]
[1744310114275,50.02718978,110.8,110.79,0.0001]
[1744310114569,68.53467707,110.8,110.79,0.0001]
[1744310115264,9.16736157,110.8,110.79,0.0001]
[1744310115464,22.5557,110.84,110.79,40.57560507]
[1744310115659,72.15530507,110.83,110.79,40.57560507]
[1744310115959,72.15530507,110.83,110.79,0.0001]
[1744310116162,9.0252,110.8,110.79,0.0001]
[1744310116944,9.16686157,110.81,110.79,0.0001]
[1744310117454,9.0239,110.82,110.8,40.57550507]
[1744310117768,9.0239,110.82,110.79,40.57560507]
[1744310118083,9.0239,110.82,110.79,0.0001]
[1744310118265,0.28432314,110.81,110.79,0.0001]
[1744310119143,26.28432314,110.8,110.79,0.0001]
[1744310119562,85.65163864,110.8,110.79,0.0001]
[1744310120250,53.959172,110.8,110.79,0.0001]
[1744310120449,94.53467707,110.8,110.79,0.0001]
[1744310120768,35.0252,110.8,110.79,0.0001]
[1744310120981,35.30952314,110.8,110.79,0.0001]
[1744310121660,94.67683864,110.8,110.79,0.0001]
[1744310121961,0.14216157,110.78,110.77,0.0001]
[1744310122139,41.00198978,110.78,110.77,0.0001]
[1744310122553,68.67853864,110.78,110.76,0.0001]
[1744310122767,41.00198978,110.77,110.76,0.0001]
[1744310122966,9.0269,110.78,110.76,0.0001]
[1744310123144,9.0252,110.8,110.77,40.57550507]
[1744310123353,9.0252,110.8,110.79,40.57550507]
[1744310123548,18.64964886,110.82,110.79,40.57550507]
[1744310123549,9.0236,110.82,110.79,40.57550507]
[1744310123745,9.0236,110.82,110.76,52.75960507]
[1744310123966,72.15820507,110.82,110.78,40.57550507]
[1744310124263,0.28432314,110.81,110.78,40.57550507]
[1744310124460,9.0236,110.82,110.8,40.57550507]
[1744310124763,0.28432314,110.81,110.79,40.57550507]
[1744310124944,9.0236,110.82,110.79,40.57550507]
[1744310125147,0.28432314,110.81,110.76,12.1841]
[1744310125348,49.73365684,110.85,110.76,12.1841]
[1744310125349,22.5468,110.88,110.8,40.57550507]
[1744310125548,31.5655,110.88,110.84,40.57550507]
[1744310125744,31.5655,110.88,110.85,40.57550507]
[1744310125952,26.0,110.85,110.83,40.57550507]
[1744310126243,31.5655,110.88,110.84,40.57550507]
[1744310126447,31.5655,110.88,110.85,40.57550507]
[1744310126749,0.28432314,110.87,110.85,40.57550507]
[1744310126946,22.5468,110.88,110.85,40.57550507]
[1744310127263,26.0,110.87,110.86,40.57550507]
[1744310127647,26.0,110.87,110.85,40.57550507]
[1744310128048,0.28432314,110.88,110.85,40.57550507]
[1744310128251,9.0179,110.89,110.86,40.57550507]
[1744310128456,0.063,110.93,110.88,40.57550507]
[1744310128659,26.0,110.91,110.9,40.57550507]
[1744310128858,26.0,110.91,110.89,40.57550507]
[1744310129679,0.28432314,110.9,110.88,10.56]
[1744310129876,26.0,110.91,110.88,10.56]
[1744310130183,26.0,110.91,110.88,51.13550507]
[1744310130674,9.0187,110.88,110.84,6.144]
[1744310130879,0.28432314,110.87,110.84,40.57550507]
[1744310131282,9.0187,110.88,110.85,40.57550507]
[1744310131777,0.28432314,110.87,110.82,1.5871]
[1744310131979,71.92532821,110.88,110.83,40.57550507]
[1744310132169,71.92532821,110.88,110.84,40.57550507]
[1744310132371,40.57550507,110.87,110.83,40.57550507]
[1744310132564,40.57550507,110.87,110.82,42.16260507]
[1744310132883,9.0195,110.87,110.84,40.57550507]
[1744310135267,9.0195,110.87,110.85,40.57550507]
[1744310135468,9.0179,110.89,110.86,51.11550507]
[1744310135993,9.0163,110.91,110.88,40.57550507]
[1744310136789,40.57550507,110.91,110.87,40.57550507]
[1744310136978,40.85982821,110.9,110.86,10.54]
[1744310137284,40.57550507,110.91,110.86,51.11550507]
[1744310137484,9.0155,110.92,110.87,6.5833]
[1744310137671,9.0155,110.92,110.89,40.57550507]
[1744310137863,9.0155,110.92,110.9,40.57550507]
[1744310138072,9.0155,110.92,110.89,40.57550507]
[1744310138275,9.0781,110.93,110.91,40.57550507]
[1744310138584,9.0781,110.93,110.91,10.54]
[1744310140284,0.063,110.93,110.92,40.57550507]
[1744310141388,0.063,110.93,110.91,10.54]
[1744310142276,0.063,110.93,110.92,40.57550507]
[1744310144086,0.063,110.93,110.91,51.11550507]
[1744310144265,0.063,110.93,110.92,40.57550507]
[1744310144584,0.063,110.93,110.91,51.11550507]
[1744310144775,0.063,110.93,110.91,10.54]
[1744310144973,40.63850507,110.93,110.89,40.57550507]
[1744310145164,9.0163,110.91,110.87,18.7863]
[1744310145366,49.59180507,110.91,110.87,59.36180507]
[1744310145564,9.0163,110.91,110.88,40.57550507]
[1744310146497,9.0163,110.91,110.87,18.7863]
[1744310146665,9.0163,110.91,110.88,40.57550507]
[1744310147095,31.557,110.91,110.87,18.7863]
[1744310147280,31.557,110.91,110.87,59.36180507]
[1744310147467,40.57550507,110.89,110.87,10.54]
[1744310147666,0.28432314,110.9,110.87,10.54]
[1744310147873,31.557,110.91,110.87,10.54]
[1744310148070,49.59180507,110.91,110.87,51.11550507]
[1744310148399,40.57550507,110.9,110.87,10.54]
[1744310148597,9.0179,110.89,110.87,10.54]
[1744310149075,40.57550507,110.88,110.84,6.3566]
[1744310149275,40.57550507,110.87,110.83,51.11550507]
[1744310150092,66.57550507,110.86,110.83,10.54]
[1744310150391,26.0,110.86,110.83,51.11550507]
[1744310150696,9.0211,110.85,110.83,51.11550507]
[1744310150872,9.0211,110.85,110.83,10.54]
[1744310151074,9.0211,110.85,110.83,51.11550507]
[1744310151274,9.0195,110.87,110.84,40.57550507]
[1744310151589,9.0195,110.87,110.83,10.54]
[1744310151777,9.0195,110.87,110.84,40.57550507]
[1744310151977,72.14390507,110.87,110.83,51.11550507]
[1744310152176,72.14390507,110.87,110.83,10.54]
[1744310152880,40.57550507,110.86,110.83,10.54]
[1744310154086,72.14390507,110.87,110.83,51.11550507]
[1744310154591,9.0211,110.85,110.83,51.11550507]
[1744310154989,9.0211,110.85,110.84,40.57550507]
[1744310156383,9.0211,110.85,110.83,51.11550507]
[1744310156692,22.55,110.87,110.84,40.57550507]
[1744310156693,9.0195,110.87,110.84,40.57550507]
[1744310156907,9.0195,110.87,110.85,40.57550507]
[1744310157897,9.0195,110.87,110.84,40.57550507]
[1744310158109,31.5684,110.87,110.83,10.54]
[1744310158402,31.5684,110.87,110.84,40.57550507]
[1744310159099,9.0195,110.87,110.86,40.57550507]
[1744310159290,22.5418,110.91,110.86,40.57550507]
[1744310159491,26.0,110.89,110.88,40.57550507]
[1744310159798,26.0,110.89,110.87,40.57550507]
[1744310160008,26.0,110.89,110.88,40.57550507]
[1744310160176,26.0,110.89,110.87,40.57550507]
[1744310160376,26.0,110.89,110.83,10.54]
[1744310160673,9.0187,110.88,110.87,40.57550507]
[1744310160888,9.0182,110.89,110.87,40.57550507]
[1744310161088,9.0182,110.89,110.83,19.5625]
[1744310161089,9.0182,110.89,110.88,40.57550507]
[1744310161284,9.0155,110.92,110.88,91.69101014]
[1744310161481,9.0155,110.92,110.91,40.57550507]
[1744310161678,9.078,110.93,110.91,40.57550507]
[1744310162000,9.078,110.93,110.92,40.57550507]
[1744310162001,0.063,110.93,110.92,40.57550507]
[1744310162805,0.063,110.93,110.88,132.11550507]
[1744310163091,0.063,110.93,110.9,40.57550507]
[1744310164003,0.063,110.93,110.92,40.57550507]
[1744310164392,40.92282821,110.93,110.88,10.54]
[1744310164589,40.92282821,110.93,110.89,40.57550507]
[1744310164901,9.0155,110.92,110.89,40.57550507]
[1744310165097,31.5542,110.92,110.88,10.54]
[1744310165302,31.5542,110.92,110.89,40.57550507]
[1744310165686,9.0155,110.92,110.9,40.57550507]
[1744310166398,9.078,110.93,110.88,60.13410507]
[1744310166602,9.078,110.93,110.91,40.57550507]
[1744310167006,0.063,110.93,110.91,40.57550507]
[1744310167706,0.063,110.93,110.92,40.57550507]
[1744310168192,0.063,110.93,110.92,48.54740507]
[1744310168382,0.063,110.93,110.92,48.68956664]
[1744310168691,0.063,110.93,110.92,48.54740507]
[1744310168888,0.063,110.93,110.92,48.68956664]
[1744310169104,0.063,110.93,110.92,57.70506664]
[1744310169284,0.063,110.93,110.92,117.07238214]
[1744310169489,0.063,110.95,110.94,26.14216157]
[1744310169717,0.063,110.95,110.94,117.81317171]
[1744310170004,0.063,110.95,110.94,51.09550507]
[1744310170382,0.063,110.95,110.94,10.52]
[1744310170628,0.28432314,110.94,110.89,6.6292]
[1744310170905,18.933972,110.94,110.89,40.57550507]
[1744310171107,9.0146,110.93,110.87,309.4]
[1744310171292,72.12680507,110.93,110.89,40.57550507]
[1744310171491,31.5513,110.93,110.89,40.57550507]
[1744310171698,31.5513,110.93,110.9,40.57550507]
[1744310171909,9.0146,110.93,110.91,10.52]
[1744310172111,9.0146,110.93,110.9,40.57550507]
[1744310172292,40.57550507,110.92,110.88,40.57550507]
[1744310172682,72.12680507,110.93,110.89,40.57550507]
[1744310173013,72.12680507,110.93,110.88,40.57550507]
[1744310173515,72.12680507,110.93,110.87,309.4]
[1744310173516,31.5513,110.93,110.89,40.57550507]
[1744310173891,72.12680507,110.93,110.89,40.57550507]
[1744310174513,31.5513,110.93,110.9,40.57550507]
[1744310175321,40.85982821,110.92,110.87,309.4]
[1744310175495,40.57550507,110.92,110.88,40.57550507]
[1744310176506,72.12680507,110.93,110.89,40.57550507]
[1744310177005,0.28432314,110.92,110.88,40.57550507]
[1744310177201,9.0138,110.94,110.87,329.54216157]
[1744310177408,9.0138,110.94,110.91,40.57550507]
[1744310177614,9.0138,110.94,110.91,51.09550507]
[1744310178110,31.5485,110.94,110.91,10.52]
[1744310178996,72.12400507,110.94,110.91,10.52]
[1744310179414,31.5485,110.94,110.91,10.52]
[1744310179618,72.12400507,110.94,110.91,10.52]
[1744310181111,9.0138,110.94,110.92,40.57550507]
[1744310181320,9.0138,110.94,110.93,40.57550507]
[1744310181506,0.063,110.95,110.93,40.57550507]
[1744310181813,40.92282821,110.95,110.91,10.52]
[1744310182123,40.57550507,110.94,110.91,10.52]
[1744310182498,40.92282821,110.95,110.91,10.52]
[1744310182797,40.57550507,110.94,110.91,10.52]
[1744310183622,9.0146,110.93,110.91,10.52]
[1744310183822,49.59010507,110.93,110.91,10.52]
[1744310184807,40.85982821,110.92,110.91,10.52]
[1744310185005,40.85982821,110.92,110.87,360.49550507]
[1744310185409,40.57550507,110.91,110.87,360.49550507]
[1744310185659,9.0195,110.87,110.82,18.2349]
[1744310185924,72.14390507,110.87,110.83,40.57550507]
[1744310186096,9.0155,110.92,110.84,20.14216157]
[1744310186418,9.0155,110.92,110.87,6.2533]
[1744310186598,49.59100507,110.92,110.87,46.82880507]
[1744310186797,49.59100507,110.92,110.88,40.57550507]
[1744310186999,9.0146,110.93,110.9,40.57550507]
[1744310188000,40.57550507,110.92,110.87,58.95510507]
[1744310188216,40.85982821,110.92,110.87,51.09550507]
[1744310189009,40.57550507,110.91,110.87,51.09550507]
[1744310189420,40.85982821,110.92,110.87,51.09550507]
[1744310189624,40.57550507,110.91,110.87,10.52]
[1744310189828,9.0171,110.9,110.87,10.52]
[1744310190024,0.28432314,110.89,110.86,40.57550507]
[1744310190332,0.28432314,110.86,110.82,51.12550507]
[1744310190504,40.57550507,110.85,110.82,10.55]
[1744310190826,40.57550507,110.86,110.82,51.12550507]
[1744310191231,40.85982821,110.85,110.82,0.03]
[1744310191820,9.022,110.84,110.82,0.03]
[1744310193301,26.0,110.83,110.82,0.03]
[1744310193503,40.71766664,110.83,110.82,0.03]
[1744310193823,35.0228,110.83,110.82,0.03]
[1744310194210,9.0223,110.84,110.82,0.03]
[1744310194528,9.0223,110.84,110.82,40.60550507]
[1744310195009,81.77495393,110.87,110.83,40.57550507]
[1744310195010,22.5498,110.87,110.83,40.57550507]
[1744310195216,9.0203,110.86,110.84,40.57550507]
[1744310195610,49.59580507,110.86,110.82,0.03]
[1744310195939,72.14670507,110.86,110.82,40.60550507]
[1744310196111,40.57550507,110.85,110.82,0.03]
[1744310196309,31.5712,110.86,110.82,0.03]
[1744310196503,40.85982821,110.85,110.82,0.03]
[1744310197241,0.28432314,110.85,110.82,0.03]
[1744310197410,26.0,110.83,110.82,0.03]
[1744310197945,35.0228,110.83,110.82,0.03]
[1744310198249,35.30712314,110.83,110.82,0.03]
[1744310198445,94.53227707,110.83,110.82,0.03]
[1744310198934,41.75352314,110.83,110.82,0.0001]
[1744310199515,94.67443864,110.83,110.82,0.0001]
[1744310200435,0.42648471,110.82,110.81,0.0001]
[1744310200620,41.00198978,110.82,110.81,0.0001]
[1744310200816,40.85982821,110.82,110.81,0.0001]
[1744310201024,9.0228,110.83,110.81,0.0001]
[1744310201218,9.0228,110.83,110.81,40.57560507]
[1744310201633,9.0228,110.83,110.82,40.57550507]
[1744310202027,9.0211,110.85,110.82,40.57550507]
[1744310203334,9.0211,110.85,110.83,40.57550507]
[1744310203517,9.0195,110.87,110.84,40.57550507]
[1744310203829,9.0195,110.87,110.86,40.57550507]
[1744310204135,9.0179,110.89,110.86,40.57550507]
[1744310204325,9.0163,110.91,110.88,40.57550507]
[1744310204639,9.0163,110.91,110.89,40.57550507]
[1744310205214,31.557,110.91,110.85,10.54]
[1744310205413,40.85982821,110.9,110.85,10.54]
[1744310205625,40.85982821,110.9,110.86,40.57550507]
[1744310205833,0.28432314,110.9,110.86,40.57550507]
[1744310206033,9.0179,110.89,110.86,40.57550507]
[1744310206622,9.0179,110.89,110.87,40.57550507]
[1744310206941,9.0179,110.89,110.88,40.57550507]
[1744310207125,22.5407,110.91,110.88,40.57550507]
[1744310207126,9.0175,110.9,110.88,40.57550507]
[1744310207835,9.0175,110.9,110.89,40.57550507]
[1744310208233,9.0155,110.92,110.89,40.57550507]
[1744310208435,9.0155,110.92,110.91,40.57550507]
[1744310208629,9.0155,110.92,110.89,40.57550507]
[1744310208835,31.5542,110.92,110.89,40.57550507]
[1744310210353,59.50947707,110.91,110.85,10.54]
[1744310210526,59.50947707,110.91,110.87,40.57550507]
[1744310210721,18.933972,110.91,110.87,40.57550507]
[1744310210928,18.933972,110.91,110.88,40.57550507]
[1744310211333,59.50947707,110.91,110.85,10.54]
[1744310211534,59.50947707,110.91,110.87,40.57550507]
[1744310211851,18.933972,110.91,110.87,40.57550507]
[1744310212053,9.0171,110.9,110.85,19.5611]
[1744310212353,0.063,110.95,110.89,40.57550507]
[1744310212538,31.6086,110.95,110.9,10.52]
[1744310212851,72.18410507,110.95,110.91,40.57550507]
[1744310213154,40.85982821,110.93,110.86,10.66216157]
[1744310213351,40.85982821,110.93,110.89,40.57550507]
[1744310213530,0.28432314,110.93,110.9,40.57550507]
[1744310214222,9.0155,110.92,110.9,40.57550507]
[1744310214921,9.0155,110.92,110.89,40.57550507]
[1744310215526,9.0155,110.92,110.9,40.57550507]
[1744310215824,9.0155,110.92,110.91,40.57550507]
[1744310216243,31.6093,110.95,110.91,40.57550507]
[1744310216545,31.6093,110.95,110.92,40.57550507]
[1744310216737,40.85982821,110.94,110.89,1.6608]
[1744310216930,40.57550507,110.91,110.86,1.6035]
[1744310217138,26.0,110.91,110.88,40.57550507]
[1744310217331,40.71766664,110.94,110.89,40.57550507]
[1744310217725,40.57550507,110.93,110.89,40.57550507]
[1744310217934,40.85982821,110.94,110.89,40.57550507]
[1744310218165,40.57550507,110.93,110.89,40.57550507]
[1744310218849,9.0155,110.92,110.89,40.57550507]
[1744310219352,9.0155,110.92,110.9,40.57550507]
[1744310219556,9.0155,110.92,110.89,40.57550507]
[1744310220850,9.0155,110.92,110.9,40.57550507]
[1744310221760,9.0142,110.94,110.91,40.57550507]
[1744310221939,9.0142,110.94,110.93,40.57550507]
[1744310222259,9.0142,110.94,110.92,40.57550507]
[1744310222665,40.57550507,110.93,110.89,40.57550507]
[1744310223037,72.12440507,110.94,110.89,40.57550507]
[1744310223238,31.5489,110.94,110.9,40.57550507]
[1744310223467,40.85982821,110.93,110.89,40.57550507]
[1744310224065,9.0765,110.95,110.92,40.57550507]